[Event "*** Titled Tuesday Blitz"]
[Site "Chess.com"]
[Date "2020.04.21"]
[Round "3"]
[White "DanielRensch"]
[Black "floplover"]
[Result "1-0"]
[WhiteElo "2496"]
[BlackElo "2251"]
[TimeControl "180+1"]
[EndTime "10:28:07 PDT"]
[Termination "DanielRensch won by resignation"]

1. e4 {[%clk 0:03:00.9]} 1... c6 {[%clk 0:02:57.6]} 2. d4 {[%clk 0:02:59]} 2...
d5 {[%clk 0:02:58.5]} 3. exd5 {[%clk 0:02:58.5]} 3... cxd5 {[%clk 0:02:58.4]} 4.
c4 {[%clk 0:02:58.3]} 4... Nf6 {[%clk 0:02:58.3]} 5. Nc3 {[%clk 0:02:56.6]} 5...
e6 {[%clk 0:02:58.4]} 6. Nf3 {[%clk 0:02:55.8]} 6... Be7 {[%clk 0:02:58.1]} 7.
c5 {[%clk 0:02:55]} 7... Nc6 {[%clk 0:02:50.4]} 8. Bb5 {[%clk 0:02:53.4]} 8...
O-O {[%clk 0:02:14.2]} 9. Bxc6 {[%clk 0:02:49.6]} 9... bxc6 {[%clk 0:02:14.1]}
10. O-O {[%clk 0:02:50.4]} 10... Nd7 {[%clk 0:02:13.6]} 11. b4 {[%clk
0:02:49.2]} 11... Qc7 {[%clk 0:02:06.1]} 12. Re1 {[%clk 0:02:48.6]} 12... Bf6
{[%clk 0:02:01.7]} 13. b5 {[%clk 0:02:30.5]} 13... Nxc5 {[%clk 0:01:54]} 14. Ba3
{[%clk 0:02:24.9]} 14... Qa5 {[%clk 0:01:24.2]} 15. Bxc5 {[%clk 0:02:23.9]}
15... Qxc3 {[%clk 0:01:24.1]} 16. Bxf8 {[%clk 0:02:24.4]} 16... Kxf8 {[%clk
0:01:24.9]} 17. Rc1 {[%clk 0:02:25]} 17... Qa5 {[%clk 0:01:22.5]} 18. bxc6
{[%clk 0:02:24.8]} 18... Ba6 {[%clk 0:01:17.7]} 19. Ne5 {[%clk 0:02:18.1]} 19...
Kg8 {[%clk 0:01:08.7]} 20. Qb3 {[%clk 0:02:00.9]} 20... Rc8 {[%clk 0:01:05.8]}
21. h3 {[%clk 0:01:49.1]} 21... h5 {[%clk 0:01:00.3]} 22. Qc3 {[%clk 0:01:04.9]}
22... Qa4 {[%clk 0:00:47.2]} 23. Qc5 {[%clk 0:00:55.7]} 23... Bb5 {[%clk
0:00:37.4]} 24. c7 {[%clk 0:00:53.1]} 24... Be8 {[%clk 0:00:33]} 25. Rb1 {[%clk
0:00:48.8]} 25... Qa6 {[%clk 0:00:19.9]} 26. Rb8 {[%clk 0:00:43.2]} 26... h4
{[%clk 0:00:18.1]} 27. Reb1 {[%clk 0:00:39.8]} 27... Bxe5 {[%clk 0:00:15.2]} 28.
dxe5 {[%clk 0:00:35.9]} 28... Bd7 {[%clk 0:00:14.7]} 29. Qd6 {[%clk 0:00:31.6]}
29... Qa4 {[%clk 0:00:06.6]} 1-0

[Event "*** Titled Tuesday Blitz"]
[Site "Chess.com"]
[Date "2020.04.21"]
[Round "3"]
[White "AnastasiaProtopopova"]
[Black "SimonKnightRivendell"]
[Result "1-0"]
[WhiteElo "2301"]
[BlackElo "1906"]
[TimeControl "180+1"]
[EndTime "10:28:08 PDT"]
[Termination "AnastasiaProtopopova won by resignation"]

1. d4 {[%clk 0:02:57.3]} 1... d5 {[%clk 0:02:53.6]} 2. c4 {[%clk 0:02:57]} 2...
e5 {[%clk 0:02:53.2]} 3. dxe5 {[%clk 0:02:55.5]} 3... d4 {[%clk 0:02:53]} 4. Nf3
{[%clk 0:02:55.6]} 4... Nc6 {[%clk 0:02:53.4]} 5. Nbd2 {[%clk 0:02:53.7]} 5...
Nge7 {[%clk 0:02:53.4]} 6. g3 {[%clk 0:02:53.8]} 6... Ng6 {[%clk 0:02:53.2]} 7.
Bg2 {[%clk 0:02:53.7]} 7... Ngxe5 {[%clk 0:02:51.5]} 8. O-O {[%clk 0:02:49.7]}
8... Be7 {[%clk 0:02:46.4]} 9. b3 {[%clk 0:02:43.6]} 9... Bf6 {[%clk 0:02:35.8]}
10. Bb2 {[%clk 0:02:42.6]} 10... d3 {[%clk 0:02:35.2]} 11. exd3 {[%clk
0:02:31.1]} 11... Nxf3+ {[%clk 0:02:33.8]} 12. Nxf3 {[%clk 0:02:32]} 12... Bxb2
{[%clk 0:02:33.7]} 13. Qe2+ {[%clk 0:02:32.5]} 13... Qe7 {[%clk 0:02:30.7]} 14.
Qxb2 {[%clk 0:02:31.9]} 14... O-O {[%clk 0:02:30.7]} 15. d4 {[%clk 0:02:25.7]}
15... Bg4 {[%clk 0:02:28.8]} 16. d5 {[%clk 0:02:21.2]} 16... Nb4 {[%clk
0:02:17.3]} 17. Qc3 {[%clk 0:02:12]} 17... a5 {[%clk 0:02:14.1]} 18. Rfe1 {[%clk
0:02:09.8]} 18... Qd6 {[%clk 0:02:11.2]} 19. Ne5 {[%clk 0:02:09.4]} 19... Bf5
{[%clk 0:02:07]} 20. a3 {[%clk 0:01:51.5]} 20... Nc2 {[%clk 0:02:05.3]} 21. g4
{[%clk 0:01:21.6]} 21... Nxe1 {[%clk 0:01:46.6]} 22. Rxe1 {[%clk 0:01:22.5]}
22... Bg6 {[%clk 0:01:43.6]} 23. f4 {[%clk 0:01:12.5]} 23... f6 {[%clk
0:01:42.1]} 24. c5 {[%clk 0:01:05.8]} 24... Qd8 {[%clk 0:01:26.8]} 25. Nxg6
{[%clk 0:00:47.9]} 25... hxg6 {[%clk 0:01:26.1]} 26. d6 {[%clk 0:00:47.5]} 26...
c6 {[%clk 0:01:15.7]} 27. Qc4+ {[%clk 0:00:38.8]} 27... Rf7 {[%clk 0:01:00.4]}
28. Re7 {[%clk 0:00:38.6]} 28... Qf8 {[%clk 0:01:00.2]} 29. Rxb7 {[%clk
0:00:38.4]} 29... Re8 {[%clk 0:00:53.8]} 30. Bxc6 {[%clk 0:00:34.7]} 30... Re1+
{[%clk 0:00:39.5]} 31. Kf2 {[%clk 0:00:34.7]} 31... Rd1 {[%clk 0:00:20]} 32. Bd5
{[%clk 0:00:24]} 1-0

[Event "*** Titled Tuesday Blitz"]
[Site "Chess.com"]
[Date "2020.04.21"]
[Round "3"]
[White "BillieKimbah"]
[Black "Pavlov_Sergey"]
[Result "1-0"]
[WhiteElo "2808"]
[BlackElo "2621"]
[TimeControl "180+1"]
[EndTime "10:28:09 PDT"]
[Termination "BillieKimbah won on time"]

1. d4 {[%clk 0:03:00.9]} 1... Nf6 {[%clk 0:02:55]} 2. c4 {[%clk 0:03:01.1]} 2...
e6 {[%clk 0:02:53.5]} 3. g3 {[%clk 0:03:01.5]} 3... d5 {[%clk 0:02:52.7]} 4. Bg2
{[%clk 0:03:01.9]} 4... dxc4 {[%clk 0:02:47.9]} 5. Nf3 {[%clk 0:03:01.1]} 5...
Bb4+ {[%clk 0:02:46.6]} 6. Bd2 {[%clk 0:03:00.5]} 6... a5 {[%clk 0:02:46.1]} 7.
O-O {[%clk 0:02:59.7]} 7... O-O {[%clk 0:02:39.3]} 8. e3 {[%clk 0:03:00]} 8...
Nc6 {[%clk 0:02:08.4]} 9. a3 {[%clk 0:02:39.5]} 9... Bd6 {[%clk 0:02:04.7]} 10.
Bc3 {[%clk 0:02:35.9]} 10... Rb8 {[%clk 0:01:52.7]} 11. Nfd2 {[%clk 0:02:27.9]}
11... e5 {[%clk 0:01:49.2]} 12. dxe5 {[%clk 0:02:19.8]} 12... Nxe5 {[%clk
0:01:32.9]} 13. Bxe5 {[%clk 0:02:15]} 13... Bxe5 {[%clk 0:01:32.9]} 14. Nxc4
{[%clk 0:02:15.9]} 14... Qe7 {[%clk 0:01:26.4]} 15. Qc2 {[%clk 0:02:09.4]} 15...
b6 {[%clk 0:01:14.2]} 16. Nbd2 {[%clk 0:02:09.3]} 16... Ba6 {[%clk 0:01:08.4]}
17. Rfd1 {[%clk 0:02:07.7]} 17... Rfd8 {[%clk 0:01:07.7]} 18. Nxe5 {[%clk
0:02:03.3]} 18... Qxe5 {[%clk 0:01:07.4]} 19. Nf3 {[%clk 0:02:03.7]} 19... Qc5
{[%clk 0:00:49.8]} 20. Qxc5 {[%clk 0:01:54.6]} 20... bxc5 {[%clk 0:00:49.5]} 21.
Rxd8+ {[%clk 0:01:55.2]} 21... Rxd8 {[%clk 0:00:49.3]} 22. Rc1 {[%clk
0:01:56.1]} 22... h6 {[%clk 0:00:26.5]} 23. h3 {[%clk 0:01:43.9]} 23... Rb8
{[%clk 0:00:25.4]} 24. Rxc5 {[%clk 0:01:36.3]} 24... Rxb2 {[%clk 0:00:25]} 25.
Ne5 {[%clk 0:01:36.4]} 25... Bb7 {[%clk 0:00:12.6]} 26. Rxc7 {[%clk 0:01:33.6]}
26... Bxg2 {[%clk 0:00:11.6]} 27. Kxg2 {[%clk 0:01:34.5]} 27... Ne4 {[%clk
0:00:11.7]} 28. Rxf7 {[%clk 0:00:50.6]} 28... Ra2 {[%clk 0:00:11.1]} 29. Rf4
{[%clk 0:00:47.1]} 29... Nc3 {[%clk 0:00:06.3]} 30. h4 {[%clk 0:00:43.8]} 30...
Rxa3 {[%clk 0:00:05.9]} 31. h5 {[%clk 0:00:44.1]} 31... Ra2 {[%clk 0:00:06.1]}
32. Ng6 {[%clk 0:00:42.6]} 1-0

[Event "*** Titled Tuesday Blitz"]
[Site "Chess.com"]
[Date "2020.04.21"]
[Round "3"]
[White "Nellichka"]
[Black "ljuks68"]
[Result "0-1"]
[WhiteElo "2094"]
[BlackElo "2341"]
[TimeControl "180+1"]
[EndTime "10:28:09 PDT"]
[Termination "ljuks68 won by resignation"]

1. d4 {[%clk 0:03:00.9]} 1... d5 {[%clk 0:02:59.7]} 2. c4 {[%clk 0:03:00.2]}
2... c6 {[%clk 0:02:59.6]} 3. cxd5 {[%clk 0:02:59.2]} 3... cxd5 {[%clk
0:02:59.4]} 4. Nc3 {[%clk 0:02:59.2]} 4... Nf6 {[%clk 0:02:59.9]} 5. Bf4 {[%clk
0:02:58.2]} 5... Nc6 {[%clk 0:03:00.3]} 6. e3 {[%clk 0:02:57.6]} 6... Bf5 {[%clk
0:03:00.3]} 7. Qb3 {[%clk 0:02:52.3]} 7... Na5 {[%clk 0:02:59.2]} 8. Qa4+ {[%clk
0:02:47.2]} 8... Bd7 {[%clk 0:02:58.5]} 9. Bb5 {[%clk 0:02:41.6]} 9... e6 {[%clk
0:02:52.5]} 10. Nf3 {[%clk 0:02:34.2]} 10... a6 {[%clk 0:02:50.2]} 11. Bxd7+
{[%clk 0:02:32.2]} 11... Nxd7 {[%clk 0:02:50]} 12. Rc1 {[%clk 0:02:24.1]} 12...
b5 {[%clk 0:02:47.1]} 13. Nxb5 {[%clk 0:02:16.6]} 13... axb5 {[%clk 0:02:35.1]}
14. Qxb5 {[%clk 0:02:14.7]} 14... Nc4 {[%clk 0:02:27.8]} 15. O-O {[%clk
0:02:03.9]} 15... Qb6 {[%clk 0:02:18.3]} 16. a4 {[%clk 0:01:40.8]} 16... Qxb5
{[%clk 0:02:11.8]} 17. axb5 {[%clk 0:01:40]} 17... Bd6 {[%clk 0:01:59.1]} 18.
Rxc4 {[%clk 0:01:32.6]} 18... Bxf4 {[%clk 0:01:58.3]} 19. Rc6 {[%clk 0:01:28.9]}
19... Bh6 {[%clk 0:01:51.8]} 20. b6 {[%clk 0:01:22.4]} 20... Ke7 {[%clk
0:01:13]} 21. b7 {[%clk 0:01:20.8]} 21... Rab8 {[%clk 0:01:13]} 22. Rc7 {[%clk
0:01:19.6]} 22... f6 {[%clk 0:01:08.3]} 23. Rfc1 {[%clk 0:01:17.9]} 23... Rhd8
{[%clk 0:01:00.9]} 24. Nd2 {[%clk 0:01:09.4]} 24... g5 {[%clk 0:00:55.5]} 25.
Nb3 {[%clk 0:01:01.5]} 25... Bf8 {[%clk 0:00:36.8]} 26. Na5 {[%clk 0:00:59.6]}
26... Ke8 {[%clk 0:00:29.5]} 27. Nc6 {[%clk 0:00:57.5]} 27... Bd6 {[%clk
0:00:27.5]} 28. Nxb8 {[%clk 0:00:50]} 28... Bxc7 {[%clk 0:00:24.8]} 29. Nxd7
{[%clk 0:00:36.3]} 29... Kxd7 {[%clk 0:00:23.5]} 30. b4 {[%clk 0:00:35.2]} 30...
Rb8 {[%clk 0:00:22.8]} 31. b5 {[%clk 0:00:34.1]} 31... Rxb7 {[%clk 0:00:22.9]}
32. Rb1 {[%clk 0:00:33]} 32... Bd6 {[%clk 0:00:21.6]} 0-1

[Event "*** Titled Tuesday Blitz"]
[Site "Chess.com"]
[Date "2020.04.21"]
[Round "3"]
[White "plumalka"]
[Black "kleinebeer98"]
[Result "1-0"]
[WhiteElo "2432"]
[BlackElo "2703"]
[TimeControl "180+1"]
[EndTime "10:28:10 PDT"]
[Termination "plumalka won on time"]

1. e4 {[%clk 0:03:00.9]} 1... c5 {[%clk 0:02:53.8]} 2. Nf3 {[%clk 0:03:00.8]}
2... e6 {[%clk 0:02:53.9]} 3. d4 {[%clk 0:03:01.1]} 3... cxd4 {[%clk 0:02:54.8]}
4. Nxd4 {[%clk 0:03:01.9]} 4... Nc6 {[%clk 0:02:54.5]} 5. Nc3 {[%clk 0:03:02.2]}
5... Qc7 {[%clk 0:02:54.4]} 6. Nb3 {[%clk 0:03:01.7]} 6... a6 {[%clk 0:02:52]}
7. Bd3 {[%clk 0:03:01.9]} 7... b5 {[%clk 0:02:50.6]} 8. O-O {[%clk 0:03:00.9]}
8... Bb7 {[%clk 0:02:50.7]} 9. f4 {[%clk 0:03:00.4]} 9... h5 {[%clk 0:02:38.1]}
10. Qf3 {[%clk 0:02:58]} 10... Nf6 {[%clk 0:02:36.3]} 11. Bd2 {[%clk 0:02:57.3]}
11... Ng4 {[%clk 0:02:31]} 12. Rae1 {[%clk 0:02:53.9]} 12... Be7 {[%clk
0:02:23.3]} 13. Kh1 {[%clk 0:02:14.8]} 13... g5 {[%clk 0:02:06.6]} 14. Nd5
{[%clk 0:01:54.2]} 14... exd5 {[%clk 0:02:05.6]} 15. exd5 {[%clk 0:01:55.1]}
15... Nce5 {[%clk 0:02:06]} 16. fxe5 {[%clk 0:01:51.6]} 16... Nxe5 {[%clk
0:02:06.9]} 17. Qf5 {[%clk 0:01:47.7]} 17... f6 {[%clk 0:01:47.8]} 18. Bxg5
{[%clk 0:01:29.8]} 18... O-O-O {[%clk 0:01:42.2]} 19. Rxe5 {[%clk 0:01:22.1]}
19... fxe5 {[%clk 0:01:26.6]} 20. Bxe7 {[%clk 0:01:23]} 20... Rde8 {[%clk
0:01:22.9]} 21. d6 {[%clk 0:00:59.8]} 21... Qc6 {[%clk 0:01:21.1]} 22. Rg1
{[%clk 0:00:52.4]} 22... Reg8 {[%clk 0:00:53]} 23. Qh3 {[%clk 0:00:51]} 23... h4
{[%clk 0:00:50.5]} 24. Na5 {[%clk 0:00:47.8]} 24... Qd5 {[%clk 0:00:25.1]} 25.
Nxb7 {[%clk 0:00:46.9]} 25... Qxb7 {[%clk 0:00:22.4]} 26. Qe3 {[%clk 0:00:41.9]}
26... h3 {[%clk 0:00:16.9]} 27. Be4 {[%clk 0:00:41.8]} 27... hxg2+ {[%clk
0:00:12.2]} 28. Rxg2 {[%clk 0:00:42.7]} 28... Rxg2 {[%clk 0:00:12.2]} 29. Bxb7+
{[%clk 0:00:38.1]} 29... Kb8 {[%clk 0:00:09.9]} 30. Kxg2 {[%clk 0:00:38.7]} 1-0

[Event "*** Titled Tuesday Blitz"]
[Site "Chess.com"]
[Date "2020.04.21"]
[Round "3"]
[White "cholzan"]
[Black "Juanovic"]
[Result "0-1"]
[WhiteElo "2487"]
[BlackElo "2150"]
[TimeControl "180+1"]
[EndTime "10:28:11 PDT"]
[Termination "Juanovic won by resignation"]

1. d4 {[%clk 0:03:00.6]} 1... d5 {[%clk 0:02:59.4]} 2. c4 {[%clk 0:03:00.4]}
2... c6 {[%clk 0:02:59.8]} 3. Nf3 {[%clk 0:03:00.4]} 3... Nf6 {[%clk 0:03:00]}
4. e3 {[%clk 0:03:00.8]} 4... e6 {[%clk 0:03:00]} 5. b3 {[%clk 0:03:00.1]} 5...
Nbd7 {[%clk 0:03:00]} 6. Bb2 {[%clk 0:03:00.4]} 6... Bb4+ {[%clk 0:02:52.4]} 7.
Nbd2 {[%clk 0:03:00.4]} 7... O-O {[%clk 0:02:52.5]} 8. Bd3 {[%clk 0:03:00.4]}
8... Ne4 {[%clk 0:02:46.8]} 9. O-O {[%clk 0:02:59.4]} 9... f5 {[%clk 0:02:46.9]}
10. Qc2 {[%clk 0:02:57.3]} 10... Bd6 {[%clk 0:02:43.5]} 11. Ne5 {[%clk
0:02:56.7]} 11... Nxe5 {[%clk 0:02:28.3]} 12. dxe5 {[%clk 0:02:56.1]} 12... Nxd2
{[%clk 0:02:24.1]} 13. exd6 {[%clk 0:02:45.1]} 13... Nxf1 {[%clk 0:02:23.6]} 14.
c5 {[%clk 0:02:44.4]} 14... Nxh2 {[%clk 0:02:18.6]} 15. Kxh2 {[%clk 0:02:44.1]}
15... Qg5 {[%clk 0:02:15.2]} 16. Be5 {[%clk 0:02:39.3]} 16... Bd7 {[%clk
0:02:09.8]} 17. Rh1 {[%clk 0:02:36.4]} 17... Be8 {[%clk 0:01:49.9]} 18. Kg1
{[%clk 0:02:33.6]} 18... Bg6 {[%clk 0:01:48.4]} 19. Rh3 {[%clk 0:02:30.4]} 19...
Qd8 {[%clk 0:01:39.5]} 20. Qc3 {[%clk 0:02:21.6]} 20... Rf7 {[%clk 0:01:38]} 21.
Qd4 {[%clk 0:02:20.7]} 21... b6 {[%clk 0:01:37]} 22. b4 {[%clk 0:02:18.5]} 22...
bxc5 {[%clk 0:01:37.2]} 23. bxc5 {[%clk 0:02:17.7]} 23... Rb8 {[%clk 0:01:35.3]}
24. Rf3 {[%clk 0:02:03.5]} 24... Rbb7 {[%clk 0:01:32]} 25. Rf4 {[%clk
0:01:55.4]} 25... Qa5 {[%clk 0:01:30.9]} 26. g4 {[%clk 0:01:50.6]} 26... Qe1+
{[%clk 0:01:27.4]} 27. Kg2 {[%clk 0:01:50.3]} 27... fxg4 {[%clk 0:01:27.3]} 28.
Rxf7 {[%clk 0:01:36.2]} 28... Rxf7 {[%clk 0:01:20.1]} 29. Bg3 {[%clk 0:01:35.4]}
29... Qd1 {[%clk 0:01:06.7]} 30. Bxg6 {[%clk 0:01:33.2]} 30... Qf3+ {[%clk
0:01:06.6]} 31. Kh2 {[%clk 0:01:31.6]} 31... hxg6 {[%clk 0:01:04.8]} 32. d7
{[%clk 0:00:49.7]} 32... Rxd7 {[%clk 0:01:00.3]} 33. Qe5 {[%clk 0:00:49.3]}
33... Rb7 {[%clk 0:00:47.7]} 34. Qxe6+ {[%clk 0:00:47.4]} 34... Kh7 {[%clk
0:00:44.7]} 0-1

[Event "*** Titled Tuesday Blitz"]
[Site "Chess.com"]
[Date "2020.04.21"]
[Round "3"]
[White "BIG_Pirate"]
[Black "SoltaniciR"]
[Result "1-0"]
[WhiteElo "2395"]
[BlackElo "2582"]
[TimeControl "180+1"]
[EndTime "10:28:13 PDT"]
[Termination "BIG_Pirate won on time"]

1. Nf3 {[%clk 0:03:00.9]} 1... c5 {[%clk 0:02:59.6]} 2. c4 {[%clk 0:03:00.9]}
2... Nf6 {[%clk 0:02:59.5]} 3. Nc3 {[%clk 0:03:01.3]} 3... e6 {[%clk 0:02:59.8]}
4. g3 {[%clk 0:03:01.5]} 4... b6 {[%clk 0:02:59.4]} 5. Bg2 {[%clk 0:03:01.7]}
5... Bb7 {[%clk 0:03:00.3]} 6. O-O {[%clk 0:03:02.2]} 6... a6 {[%clk 0:03:00.8]}
7. d4 {[%clk 0:03:02.6]} 7... cxd4 {[%clk 0:03:01]} 8. Qxd4 {[%clk 0:03:03.5]}
8... d6 {[%clk 0:03:01.2]} 9. Rd1 {[%clk 0:03:03.6]} 9... Nbd7 {[%clk
0:03:01.2]} 10. b3 {[%clk 0:03:03.5]} 10... Be7 {[%clk 0:03:00.2]} 11. e4 {[%clk
0:03:03.4]} 11... Qc7 {[%clk 0:02:59.7]} 12. Ba3 {[%clk 0:03:02.6]} 12... Nc5
{[%clk 0:02:59.7]} 13. e5 {[%clk 0:03:03.2]} 13... dxe5 {[%clk 0:03:00.2]} 14.
Qxe5 {[%clk 0:03:04.1]} 14... Rc8 {[%clk 0:03:00.3]} 15. Qxc7 {[%clk 0:03:03.8]}
15... Rxc7 {[%clk 0:03:01.2]} 16. Bc1 {[%clk 0:03:04.1]} 16... Nfe4 {[%clk
0:02:38.6]} 17. Bf4 {[%clk 0:02:42.3]} 17... Rc8 {[%clk 0:02:36.6]} 18. Nxe4
{[%clk 0:02:37.9]} 18... Bxe4 {[%clk 0:02:36.3]} 19. Nd4 {[%clk 0:01:50.3]}
19... Bxg2 {[%clk 0:02:02.2]} 20. Kxg2 {[%clk 0:01:51.2]} 20... g5 {[%clk
0:02:02.3]} 21. Be3 {[%clk 0:01:46]} 21... h5 {[%clk 0:02:01.5]} 22. Rac1 {[%clk
0:01:21.5]} 22... g4 {[%clk 0:01:57.4]} 23. Ne2 {[%clk 0:01:12.2]} 23... h4
{[%clk 0:01:53.8]} 24. h3 {[%clk 0:00:20.5]} 1-0

[Event "*** Titled Tuesday Blitz"]
[Site "Chess.com"]
[Date "2020.04.21"]
[Round "3"]
[White "Morshynska"]
[Black "Saloni1299"]
[Result "1/2-1/2"]
[WhiteElo "2136"]
[BlackElo "2299"]
[TimeControl "180+1"]
[EndTime "10:28:13 PDT"]
[Termination "Game drawn by repetition"]

1. e4 {[%clk 0:03:00.9]} 1... e6 {[%clk 0:02:59.9]} 2. d3 {[%clk 0:02:45.2]}
2... d5 {[%clk 0:02:56.3]} 3. Nd2 {[%clk 0:02:45.3]} 3... c5 {[%clk 0:02:56.5]}
4. g3 {[%clk 0:02:44.5]} 4... Nc6 {[%clk 0:02:56.6]} 5. Bg2 {[%clk 0:02:44.3]}
5... g6 {[%clk 0:02:57.2]} 6. Ngf3 {[%clk 0:02:40.8]} 6... Bg7 {[%clk
0:02:57.4]} 7. O-O {[%clk 0:02:40.4]} 7... Nge7 {[%clk 0:02:57.7]} 8. Re1 {[%clk
0:02:38.4]} 8... b6 {[%clk 0:02:56.5]} 9. Nf1 {[%clk 0:02:28.5]} 9... O-O {[%clk
0:02:45.5]} 10. h4 {[%clk 0:02:24.8]} 10... h6 {[%clk 0:02:43.4]} 11. e5 {[%clk
0:02:18.1]} 11... Qc7 {[%clk 0:02:13.9]} 12. Bf4 {[%clk 0:02:16.5]} 12... Nd4
{[%clk 0:02:13.1]} 13. N1h2 {[%clk 0:02:08.7]} 13... Ba6 {[%clk 0:02:08.6]} 14.
Qd2 {[%clk 0:02:00.1]} 14... Nec6 {[%clk 0:02:08.3]} 15. Nxd4 {[%clk 0:01:47.2]}
15... cxd4 {[%clk 0:02:05.3]} 16. Bxh6 {[%clk 0:01:33.1]} 16... Nxe5 {[%clk
0:02:04.7]} 17. Bf4 {[%clk 0:01:14.9]} 17... f6 {[%clk 0:01:52.5]} 18. Ng4
{[%clk 0:01:06.7]} 18... Rac8 {[%clk 0:01:52]} 19. Rac1 {[%clk 0:01:04.3]} 19...
Bb7 {[%clk 0:01:43]} 20. Re2 {[%clk 0:00:50.9]} 20... Rf7 {[%clk 0:01:15.2]} 21.
Rce1 {[%clk 0:00:48.6]} 21... Rcf8 {[%clk 0:01:14.1]} 22. Nxe5 {[%clk
0:00:29.8]} 22... fxe5 {[%clk 0:01:13.5]} 23. Bxe5 {[%clk 0:00:28.6]} 23... Bxe5
{[%clk 0:01:13.5]} 24. Rxe5 {[%clk 0:00:29.5]} 24... Rxf2 {[%clk 0:01:10.7]} 25.
Qg5 {[%clk 0:00:23.2]} 25... Qf7 {[%clk 0:00:59.8]} 26. Rxe6 {[%clk 0:00:15.7]}
26... Rxg2+ {[%clk 0:00:34.6]} 27. Kxg2 {[%clk 0:00:16.6]} 27... Qf2+ {[%clk
0:00:34.6]} 28. Kh1 {[%clk 0:00:12.9]} 28... Qf3+ {[%clk 0:00:34.8]} 29. Kh2
{[%clk 0:00:11.2]} 29... Qf2+ {[%clk 0:00:34.9]} 30. Kh1 {[%clk 0:00:09.6]}
30... Qf3+ {[%clk 0:00:34]} 31. Kh2 {[%clk 0:00:09.6]} 31... Qf2+ {[%clk
0:00:34.1]} 32. Kh1 {[%clk 0:00:06.4]} 1/2-1/2

[Event "*** Titled Tuesday Blitz"]
[Site "Chess.com"]
[Date "2020.04.21"]
[Round "3"]
[White "GelmanAlexander"]
[Black "AnishGiri"]
[Result "0-1"]
[WhiteElo "2477"]
[BlackElo "3010"]
[TimeControl "180+1"]
[EndTime "10:28:14 PDT"]
[Termination "AnishGiri won by resignation"]

1. c4 {[%clk 0:03:00.9]} 1... Nf6 {[%clk 0:02:59.6]} 2. Nf3 {[%clk 0:02:59.8]}
2... g6 {[%clk 0:02:59.7]} 3. e3 {[%clk 0:02:59.5]} 3... Bg7 {[%clk 0:02:59.6]}
4. Be2 {[%clk 0:02:59.8]} 4... O-O {[%clk 0:02:59.9]} 5. O-O {[%clk 0:02:59.1]}
5... c5 {[%clk 0:03:00.2]} 6. d3 {[%clk 0:02:57.6]} 6... Nc6 {[%clk 0:03:00.1]}
7. a3 {[%clk 0:02:57.4]} 7... d5 {[%clk 0:03:00]} 8. cxd5 {[%clk 0:02:57.6]}
8... Nxd5 {[%clk 0:03:00.3]} 9. Nbd2 {[%clk 0:02:58.2]} 9... b6 {[%clk
0:03:00.1]} 10. Qc2 {[%clk 0:02:58.4]} 10... Bb7 {[%clk 0:03:00.3]} 11. Ne4
{[%clk 0:02:58.5]} 11... Rc8 {[%clk 0:02:59.5]} 12. Bd2 {[%clk 0:02:58.7]} 12...
e5 {[%clk 0:02:57.8]} 13. Rac1 {[%clk 0:02:58.6]} 13... Kh8 {[%clk 0:02:57.4]}
14. Rfe1 {[%clk 0:02:56.7]} 14... h6 {[%clk 0:02:57.7]} 15. Qb1 {[%clk
0:02:54.5]} 15... f5 {[%clk 0:02:57.7]} 16. Ng3 {[%clk 0:02:54.7]} 16... Qd6
{[%clk 0:02:55.6]} 17. h3 {[%clk 0:02:50.2]} 17... a5 {[%clk 0:02:55.7]} 18. Qc2
{[%clk 0:02:49.7]} 18... Rce8 {[%clk 0:02:52.1]} 19. Qb3 {[%clk 0:02:17.3]}
19... Ba8 {[%clk 0:02:50.9]} 20. Red1 {[%clk 0:02:14.5]} 20... Rb8 {[%clk
0:02:50.7]} 21. Qa4 {[%clk 0:02:12.3]} 21... Qd7 {[%clk 0:02:44.9]} 22. Qc2
{[%clk 0:02:10.5]} 22... Rf7 {[%clk 0:02:41.8]} 23. h4 {[%clk 0:02:06.7]} 23...
f4 {[%clk 0:02:34.3]} 24. Ne4 {[%clk 0:02:06.6]} 24... Rbf8 {[%clk 0:02:34.5]}
25. Rf1 {[%clk 0:01:59.9]} 25... Bb7 {[%clk 0:02:34.2]} 26. Qb3 {[%clk
0:01:59.1]} 26... Ba6 {[%clk 0:02:28.6]} 27. Rcd1 {[%clk 0:01:49.1]} 27... Nce7
{[%clk 0:02:28.4]} 28. Bc3 {[%clk 0:01:26]} 28... Nxc3 {[%clk 0:02:19]} 29. bxc3
{[%clk 0:01:25.7]} 29... fxe3 {[%clk 0:02:12]} 30. fxe3 {[%clk 0:01:24.2]} 30...
Qc6 {[%clk 0:01:53.7]} 31. Ng3 {[%clk 0:01:02.1]} 31... Nd5 {[%clk 0:01:51.3]}
32. Kf2 {[%clk 0:00:49.7]} 32... a4 {[%clk 0:01:50.6]} 33. Qc2 {[%clk
0:00:47.1]} 33... b5 {[%clk 0:01:35.9]} 34. c4 {[%clk 0:00:44]} 34... Nf6 {[%clk
0:01:35.3]} 35. Kg1 {[%clk 0:00:36.1]} 35... Ng4 {[%clk 0:01:34.6]} 36. Qc1
{[%clk 0:00:36.3]} 36... b4 {[%clk 0:01:34.6]} 37. axb4 {[%clk 0:00:27.3]} 37...
cxb4 {[%clk 0:01:34.8]} 38. d4 {[%clk 0:00:28.1]} 38... exd4 {[%clk 0:01:31.7]}
39. exd4 {[%clk 0:00:28.5]} 39... a3 {[%clk 0:01:28.2]} 40. h5 {[%clk
0:00:22.3]} 40... Qc7 {[%clk 0:01:12]} 41. hxg6 {[%clk 0:00:20.5]} 41... Qxg3
{[%clk 0:00:57.8]} 42. gxf7 {[%clk 0:00:19.2]} 42... Rxf7 {[%clk 0:00:58.7]} 43.
Bd3 {[%clk 0:00:08]} 43... Bxd4+ {[%clk 0:00:55.3]} 0-1